fUSD/lending_fUSD_20260217
["ID","MTS","AMOUNT","RATE_DAILY","PERIOD"]
[405787006,1771308648169,-3211.6190319,0.00017992,2]
[405787007,1771308648179,-151.0,0.00017997,2]
[405787008,1771308648189,-300.0,0.00017999,2]
[405787009,1771308648199,-915.21,0.00017999,2]
[405787010,1771308648209,-915.21,0.00017999,2]
[405787011,1771308648219,-915.21,0.00017999,2]
[405787012,1771308648229,-915.21,0.00017999,2]
[405787013,1771308648239,-915.21,0.00017999,2]
[405787014,1771308648249,-915.21,0.00017999,2]
[405787015,1771308648259,-915.21,0.00017999,2]
[405787016,1771308648270,-915.21,0.00017999,2]
[405787017,1771308648280,-915.21,0.00017999,2]
[405787018,1771308648290,-915.21,0.00017999,2]
[405787019,1771308648300,-915.21,0.00017999,2]
[405787020,1771308648310,-915.21,0.00017999,2]
[405787021,1771308648320,-915.21,0.00017999,2]
[405787022,1771308648331,-915.21,0.00017999,2]
[405787023,1771308648340,-915.21,0.00017999,2]
[405787024,1771308648350,-915.21,0.00017999,2]
[405787025,1771308648360,-915.21,0.00017999,2]
[405787026,1771308648371,-915.21,0.00017999,2]
[405787027,1771308648382,-915.21,0.00017999,2]
[405787028,1771308648392,-915.2263384,0.00017999,2]
[405787029,1771308648402,-500.0,0.00017999,2]
[405787030,1771308648412,-500.0,0.00017999,2]
[405787031,1771308648422,-500.0,0.00017999,2]
[405787032,1771308648432,-500.0,0.00017999,2]
[405787033,1771308648443,-500.0,0.00017999,2]
[405787034,1771308648454,-500.0,0.00017999,2]
[405787035,1771308648463,-500.0,0.00017999,2]
[405787036,1771308648473,-500.0,0.00017999,2]
[405787037,1771308648483,-500.0,0.00017999,2]
[405787038,1771308648493,-500.0,0.00017999,2]
[405787039,1771308648503,-500.0,0.00017999,2]
[405787040,1771308648513,-500.0,0.00017999,2]
[405787041,1771308648523,-500.0,0.00017999,2]
[405787042,1771308648533,-286.9609652,0.00017999,2]
[405787043,1771308648543,-300.0,0.00017999,2]
[405787044,1771308648553,-666.0,0.00017999,2]
[405787045,1771308648563,-500.0,0.00017999,2]
[405787046,1771308648573,-500.0,0.00017999,2]
[405787047,1771308648583,-500.0,0.00017999,2]
[405787048,1771308648593,-500.0,0.00017999,2]
[405787049,1771308648603,-388.47570654,0.00017999,2]
[405787050,1771308648614,-508.20125622,0.00017999,2]
[405787051,1771308648624,-300.0,0.00017999,2]
[405787052,1771308648635,-666.0,0.00017999,2]
[405787053,1771308648645,-300.0,0.00017999,2]
[405787054,1771308648655,-23598.10797836,0.00017999,2]
[405787055,1771308648666,-10983757.70551737,0.00018,2]
[405787056,1771308649318,-7714549.94446734,0.00018,2]
[405787057,1771308649328,-7514.99024711,0.00018,2]
[405787058,1771308649340,-70287.04519593,0.00018,2]
[405787059,1771308649350,-688410.20199066,0.00018,2]
[405787060,1771308649367,-776.90309751,0.00018,2]
[405787061,1771308649515,-1481.89,0.00012716,2]
[405787062,1771308649531,-1739.63615687,0.00012716,2]
[405787063,1771308649567,-7.223e-05,0.00012716,2]
[405787064,1771308650502,-1508.78882797,0.00012716,2]
[405787065,1771308650512,-19017.97681957,0.00018,2]
[405787067,1771308838750,-2705.4,7.9e-05,2]
[405787068,1771308838780,-669.77,7.9e-05,2]
[405787069,1771308838811,-948.44,7.9e-05,2]
[405787070,1771308838846,-520.44,7.9e-05,2]
[405787071,1771308839058,-311.91,7.9e-05,2]
[405787072,1771308839087,-2812.4,7.9e-05,2]
[405787073,1771308839115,-1800.33,7.9e-05,2]
[405787074,1771308839448,-2159.29,7.9e-05,2]
[405787075,1771308861870,-214.0121963,8.219e-05,2]
[405787076,1771308861902,-500.0,8.219e-05,2]
[405787077,1771308861932,-292.49812506,8.219e-05,2]
[405787078,1771308889037,500.0,7.8e-05,2]
[405787080,1771308909172,10000.01,8.283e-05,2]
[405787081,1771308909201,10000.01,8.283e-05,2]
[405787082,1771308909229,10000.01,8.283e-05,2]
[405787083,1771308909256,10000.01,8.283e-05,2]
[405787084,1771308909284,10000.01,8.283e-05,2]
[405787085,1771308917375,-1772.16831995,8.283e-05,2]
[405787086,1771308917472,-10000.01,8.283e-05,2]
[405787087,1771308917624,-10000.01,8.283e-05,2]
[405787088,1771308917761,-10000.01,8.283e-05,2]
[405787089,1771308917881,-10000.01,8.283e-05,2]
[405787092,1771308940609,160.0,8.295e-05,3]
[405787097,1771308998243,-250.0,7.909e-05,2]
[405787098,1771309014303,-500.0,8.282e-05,2]
[405787099,1771309014337,-177.86617412,8.282e-05,2]
[405787100,1771309014367,-253.68546537,8.282e-05,2]
[405787101,1771309014398,-533.02246026,8.282e-05,2]
[405787102,1771309014429,-189.58150033,8.282e-05,2]
[405787103,1771309014459,-510.27609923,8.282e-05,2]
[405787104,1771309014495,-500.0,8.282e-05,2]
[405787105,1771309014526,-406.5836569,8.282e-05,2]
[405787106,1771309014564,-500.0,8.282e-05,2]
[405787107,1771309014600,-500.0,8.282e-05,2]
[405787108,1771309014637,-500.0,8.282e-05,2]
[405787109,1771309014673,-357.97928758,8.282e-05,2]
[405787110,1771309015579,-142.02071242,8.282e-05,2]
[405787111,1771309015616,-500.0,8.282e-05,2]
[405787112,1771309015651,-500.0,8.282e-05,2]
[405787113,1771309015690,-217.43377024,8.282e-05,2]
[405787114,1771309021322,300.0,8.282e-05,2]
[405787115,1771309023387,2170.98683069,8.1e-05,2]
[405787116,1771309023446,3383.57892911,8.1e-05,2]
[405787117,1771309023497,1426.53527488,8.1e-05,2]
[405787118,1771309023527,1653.89562962,8.1e-05,2]
[405787119,1771309023604,3686.72695371,8.1e-05,2]
[405787120,1771309030551,-7378.29638199,8.283e-05,2]
[405787121,1771309030667,-10000.01,8.283e-05,2]
[405787122,1771309030774,-10000.01,8.283e-05,2]
[405787123,1771309030887,-10000.01,8.283e-05,2]
[405787124,1771309031009,-10000.01,8.283e-05,2]
[405787125,1771309031125,-10000.01,8.283e-05,2]
[405787126,1771309062926,160.0,8.284e-05,3]
[405787127,1771309174380,262.15,8.283e-05,3]
[405787128,1771309205538,1234.05769841,8.1e-05,2]
[405787129,1771309205683,1884.49231746,8.1e-05,2]
[405787130,1771309205744,1721.8836627,8.1e-05,2]
[405787131,1771309205807,2047.10097222,8.1e-05,2]
[405787132,1771309292590,372.395,8.02e-05,2]
[405787133,1771309292631,2740.08034921,8.02e-05,2]
[405787134,1771309292656,1630.62365079,8.02e-05,2]
[405787135,1771309315194,-150.0,8.182e-05,2]
[405787136,1771309321807,300.0,8.182e-05,2]
[405787137,1771309330231,-218.0,8.183e-05,2]
[405787138,1771309330260,-2714.82260721,8.183e-05,2]
[405787139,1771309330371,-4134.36478558,8.183e-05,2]
[405787140,1771309330399,-154.50874315,8.183e-05,2]
[405787141,1771309330529,-1422.26294254,8.183e-05,2]
[405787143,1771309421775,4566.12492852,8.183e-05,2]
[405787144,1771309439462,1051.1811238,8.183e-05,2]
[405787145,1771309441331,300.0,8.182e-05,2]
[405787146,1771309443124,150.0,8.182e-05,2]
[405787147,1771309444444,177.57982576,8.182e-05,2]
[405787148,1771309454819,500.0,8.182e-05,2]
[405787149,1771309454857,500.0,8.182e-05,2]
[405787150,1771309454895,500.0,8.182e-05,2]
[405787151,1771309455034,500.0,8.182e-05,2]
[405787152,1771309455082,500.0,8.182e-05,2]
[405787153,1771309455124,500.0,8.182e-05,2]
[405787154,1771309455163,500.0,8.182e-05,2]
[405787155,1771309455222,255.12412192,8.182e-05,2]
[405787156,1771309455254,244.87587808,8.182e-05,2]
[405787157,1771309455296,500.0,8.182e-05,2]
[405787158,1771309455341,500.0,8.182e-05,2]
[405787159,1771309455381,500.0,8.182e-05,2]
[405787160,1771309455424,500.0,8.182e-05,2]
[405787161,1771309455465,500.0,8.182e-05,2]
[405787162,1771309455516,500.0,8.182e-05,2]
[405787163,1771309455555,238.31557583,8.182e-05,2]
[405787164,1771309455594,500.0,8.182e-05,2]
[405787165,1771309455633,500.0,8.182e-05,2]
[405787166,1771309455672,500.0,8.182e-05,2]
[405787167,1771309455710,500.0,8.182e-05,2]
[405787168,1771309455772,500.0,8.182e-05,2]
[405787169,1771309455895,500.0,8.182e-05,2]
[405787170,1771309456912,500.0,8.182e-05,2]
[405787171,1771309456981,500.0,8.182e-05,2]
[405787172,1771309457037,500.0,8.182e-05,2]
[405787173,1771309457073,500.0,8.182e-05,2]
[405787174,1771309457126,500.0,8.182e-05,2]
[405787175,1771309457164,500.0,8.182e-05,2]
[405787176,1771309457205,500.0,8.182e-05,2]
[405787177,1771309457245,16.81854609,8.182e-05,2]
[405787178,1771309457277,483.18145391,8.182e-05,2]
[405787179,1771309464527,-250.0,8.183e-05,2]
[405787180,1771309464552,-24750.0,8.183e-05,2]
[405787181,1771309468297,500.0,8.182e-05,2]
[405787182,1771309468337,500.0,8.182e-05,2]
[405787183,1771309468375,500.0,8.182e-05,2]
[405787184,1771309468413,500.0,8.182e-05,2]
[405787185,1771309468461,500.0,8.182e-05,2]
[405787186,1771309468597,500.0,8.182e-05,2]
[405787187,1771309468632,500.0,8.182e-05,2]
[405787188,1771309473545,-9675.10521476,8.183e-05,2]
[405787189,1771309473602,-10000.01,8.183e-05,2]
[405787190,1771309473631,-10000.01,8.183e-05,2]
[405787191,1771309473726,-10000.01,8.183e-05,2]
[405787192,1771309473885,-10000.01,8.183e-05,2]
[405787193,1771309474023,-10000.01,8.183e-05,2]
[405787194,1771309478114,-10000.01,8.183e-05,2]
[405787195,1771309478129,-10000.01,8.183e-05,2]
[405787196,1771309478145,-10000.01,8.183e-05,2]
[405787197,1771309478160,-10000.01,8.183e-05,2]
[405787198,1771309478174,-10000.01,8.183e-05,2]
[405787203,1771309606919,-300.0,7.999e-05,2]
[405787204,1771309621921,-10000.01,8e-05,2]
[405787205,1771309622041,-10000.01,8e-05,2]
[405787206,1771309622214,-3643.53920929,8e-05,2]
[405787209,1771309637018,-150.0,8.082e-05,2]
[405787210,1771309644253,-562.38554082,8.082e-05,2]
[405787211,1771309644278,-341.92087303,8.082e-05,2]
[405787212,1771309644312,-500.0,8.082e-05,2]
[405787213,1771309644345,-500.0,8.082e-05,2]
[405787214,1771309644376,-500.0,8.082e-05,2]
[405787215,1771309644407,-273.83155758,8.082e-05,2]
[405787216,1771309644436,-500.0,8.083e-05,2]
[405787217,1771309644459,-4129.358,8.083e-05,2]
[405787218,1771309644482,-2697.50402857,8.083e-05,2]
[405787221,1771309652202,-10000.01,8.083e-05,2]
[405787222,1771309652347,-10000.01,8.083e-05,2]
[405787223,1771309652431,-10000.01,8.083e-05,2]
[405787224,1771309652550,-10000.01,8.083e-05,2]
[405787225,1771309652643,-10000.01,8.083e-05,2]
[405787226,1771309653247,-10000.01,8.083e-05,2]
[405787227,1771309653265,-10000.01,8.083e-05,2]
[405787228,1771309653316,-10000.01,8.083e-05,2]
[405787229,1771309653362,-3246.45132857,8.083e-05,2]
[405787230,1771309653400,-3507.10734286,8.083e-05,2]
[405787231,1771309658217,-1229.256994,8.178e-05,2]
[405787232,1771309668157,437.69360142,8.082e-05,2]
[405787233,1771309670608,-300.0,8.182e-05,2]
[405787234,1771309670640,-1200.0,8.182e-05,2]
[405787235,1771309670670,-1276.28087809,8.182e-05,2]
[405787236,1771309676236,500.0,8.082e-05,2]
[405787237,1771309676294,500.0,8.082e-05,2]
[405787238,1771309676340,500.0,8.082e-05,2]
[405787239,1771309676407,166.93785467,8.082e-05,2]
[405787240,1771309679911,445.546946,8.178e-05,2]
[405787241,1771309696181,392.58581832,7.888e-05,2]
[405787242,1771309705490,500.0,8.082e-05,2]
[405787243,1771309705551,500.0,8.082e-05,2]
[405787244,1771309705599,500.0,8.082e-05,2]
[405787245,1771309705655,166.93785467,8.082e-05,2]
[405787246,1771309709218,266.0,8.182e-05,2]
[405787247,1771309712087,250.84676906,8.082e-05,2]
[405787248,1771309726024,150.0,9.525e-05,5]
[405787249,1771309741299,300.0,8.182e-05,2]
[405787250,1771309754294,2294.9,8.182e-05,2]
[405787252,1771309759606,3211.6190319,8.146e-05,2]
[405787254,1771309801303,300.0,8.182e-05,2]
[405787255,1771309801342,1200.0,8.182e-05,2]
[405787256,1771309803407,117.12052605,8.182e-05,2]
[405787257,1771309803436,32.87947395,8.182e-05,2]
[405787273,1771309831988,-522.43722123,8.182e-05,2]
[405787274,1771309832016,-477.56277877,8.182e-05,2]
[405787275,1771309832026,-500.0,8.182e-05,2]
[405787276,1771309832036,-500.0,8.182e-05,2]
[405787277,1771309832047,-400.70544464,8.182e-05,2]
[405787278,1771309832057,-500.0,8.182e-05,2]
[405787279,1771309832068,-500.0,8.182e-05,2]
[405787280,1771309832079,-369.29205418,8.182e-05,2]
[405787281,1771309832089,-181.23658719,8.182e-05,2]
[405787282,1771309832099,-151.47260236,8.183e-05,2]
[405787283,1771309832110,-3044.08328568,8.183e-05,2]
[405787284,1771309832120,-1445157.77519979,8.183e-05,2]
[405787285,1771309832132,-122052.19987606,8.183e-05,2]
[405787286,1771309832143,-34987.19667185,8.183e-05,2]
[405787287,1771309832156,-20878.26271784,8.183e-05,2]
[405787288,1771309837572,-2738.3745982,8.183e-05,2]
[405787289,1771309837581,-2995.48853038,8.183e-05,2]
[405787290,1771309837668,-1873929.07700408,8.183e-05,2]
[405787291,1771309837679,-337.92889973,8.183e-05,2]
[405787292,1771309837689,-500.0,8.219e-05,2]
[405787293,1771309837698,-493.16755272,8.219e-05,2]
[405787294,1771309837708,-500.0,8.219e-05,2]
[405787295,1771309837718,-150.0,8.219e-05,2]
[405787296,1771309837728,-252.266366,8.219e-05,2]
[405787297,1771309837738,-354.532733,8.219e-05,2]
[405787298,1771309837747,-456.7991,8.219e-05,2]
[405787299,1771309837758,-559.065466,8.219e-05,2]
[405787300,1771309837767,-661.331833,8.219e-05,2]
[405787301,1771309837777,-763.5982,8.219e-05,2]
[405787302,1771309837787,-865.864566,8.219e-05,2]
[405787303,1771309837796,-968.130933,8.219e-05,2]
[405787304,1771309837805,-1070.3973,8.219e-05,2]
[405787305,1771309837816,-166.421882,8.359e-05,2]
[405787306,1771309837826,-1347.002924,8.447e-05,2]
[405787307,1771309837835,-769.715957,8.55e-05,2]
[405787308,1771309837845,-150.0,8.551e-05,2]
[405787310,1771309837855,-194.152209,8.551e-05,2]
[405787312,1771309837865,-238.304419,8.551e-05,2]
[405787314,1771309837875,-282.456628,8.551e-05,2]
[405787316,1771309837884,-326.608838,8.551e-05,2]
[405787318,1771309837894,-370.761047,8.551e-05,2]
[405787320,1771309837904,-414.913257,8.551e-05,2]
[405787322,1771309837914,-459.065466,8.551e-05,2]
[405787324,1771309837923,-503.217676,8.551e-05,2]
[405787326,1771309837933,-547.369885,8.551e-05,2]
[405787328,1771309837943,-1000.0,8.569e-05,2]
[405787330,1771309837952,-420.0,9e-05,2]
[405787332,1771309837962,-1680.0,9e-05,2]
[405787334,1771309837972,-250.0,9e-05,2]
[405787336,1771309837981,-250.0,9e-05,2]
[405787338,1771309837991,-194.2424953,9e-05,2]
[405787340,1771309838001,-250.0,9e-05,2]
[405787342,1771309838010,-255.0,9.001e-05,2]
[405787344,1771309838019,-169.0,9.04e-05,2]
[405787346,1771309838029,-415.0,9.058e-05,2]
[405787349,1771309838040,-184.0,9.076e-05,2]
[405787351,1771309838049,-303.0,9.094e-05,2]
[405787353,1771309838059,-206.0,9.102e-05,2]
[405787355,1771309838069,-358.0,9.185e-05,2]
[405787357,1771309838078,-434.0,9.204e-05,2]
[405787359,1771309838088,-1460.0,9.228e-05,2]
[405787361,1771309838098,-1000.0,9.64e-05,2]
[405787395,1771309838415,-500.0,9.726e-05,2]
[405787397,1771309838426,-150.0,9.726e-05,2]
[405787399,1771309838436,-500.0,9.726e-05,2]
[405787401,1771309838447,-500.0,9.726e-05,2]
[405787403,1771309838457,-150.0,9.726e-05,2]
[405787405,1771309838468,-150.0,9.726e-05,2]
[405787407,1771309838479,-500.0,9.726e-05,2]
[405787409,1771309838490,-150.0,9.726e-05,2]
[405787411,1771309838500,-500.0,9.726e-05,2]
[405787414,1771309838514,-500.0,9.726e-05,2]
[405787416,1771309838524,-466.0,9.726e-05,2]
[405787418,1771309838535,-150.0,9.726e-05,2]
[405787420,1771309838545,-500.0,9.726e-05,2]
[405787422,1771309838555,-150.0,9.726e-05,2]
[405787424,1771309838565,-500.0,9.726e-05,2]
[405787426,1771309838575,-236245.12985863,9.77e-05,2]
[405787428,1771309838586,-500.0,9.781e-05,2]
[405787430,1771309838596,-151.2254874,9.781e-05,2]
[405787432,1771309838607,-500.0,9.781e-05,2]
[405787434,1771309838618,-500.0,9.781e-05,2]
[405787436,1771309838628,-150.07216309,9.781e-05,2]
[405787438,1771309838639,-500.0,9.781e-05,2]
[405787440,1771309838649,-150.0,9.781e-05,2]
[405787442,1771309838659,-500.0,9.781e-05,2]
[405787444,1771309838670,-500.0,9.781e-05,2]
[405787446,1771309838680,-466.0,9.781e-05,2]
[405787448,1771309838690,-500.0,9.781e-05,2]
[405787450,1771309838699,-500.0,9.781e-05,2]
[405787452,1771309838709,-205.0,9.8e-05,2]
[405787454,1771309838719,-500.0,9.836e-05,2]
[405787457,1771309838729,-500.0,9.836e-05,2]
[405787459,1771309838739,-500.0,9.836e-05,2]
[405787461,1771309838748,-150.0,9.836e-05,2]
[405787463,1771309838759,-505.10095498,9.836e-05,2]
[405787465,1771309838769,-500.0,9.836e-05,2]
[405787467,1771309838779,-500.0,9.836e-05,2]
[405787469,1771309838789,-466.0,9.836e-05,2]
[405787471,1771309838800,-500.0,9.836e-05,2]
[405787473,1771309838810,-500.0,9.836e-05,2]
[405787475,1771309838819,-500.0,9.89e-05,2]
[405787477,1771309838828,-500.0,9.89e-05,2]
[405787479,1771309838838,-178.36591542,9.89e-05,2]
[405787481,1771309838848,-150.0,9.89e-05,2]
[405787483,1771309838857,-500.0,9.89e-05,2]
[405787485,1771309838867,-500.0,9.89e-05,2]
[405787487,1771309838877,-466.0,9.89e-05,2]
[405787489,1771309838887,-500.0,9.89e-05,2]
[405787491,1771309838897,-500.0,9.89e-05,2]
[405787493,1771309838906,-587.0,9.9e-05,2]
[405787495,1771309838915,-2351.0,9.9e-05,2]
[405787497,1771309838925,-1500.0,9.942e-05,2]
[405787499,1771309838936,-510.76125773,9.945e-05,2]
[405787501,1771309838946,-500.0,9.945e-05,2]
[405787503,1771309838955,-250.53819001,9.945e-05,2]
[405787505,1771309838968,-500.0,9.945e-05,2]
[405787507,1771309838979,-500.0,9.945e-05,2]
[405787509,1771309838989,-466.0,9.945e-05,2]
[405787512,1771309838999,-500.0,9.945e-05,2]
[405787514,1771309839010,-500.0,9.945e-05,2]
[405787515,1771309839019,-500.0,0.0001,2]
[405787518,1771309839028,-500.0,0.0001,2]
[405787520,1771309839039,-500.0,0.0001,2]
[405787522,1771309839048,-466.0,0.0001,2]
[405787524,1771309839058,-500.0,0.0001,2]
[405787525,1771309839070,-153.2248447,0.0001,2]
[405787528,1771309839080,-269.39,0.0001,2]
[405787530,1771309839090,-200.0,0.0001,2]
[405787532,1771309839099,-151.0,0.0001,2]
[405787534,1771309839108,-151.0,0.0001,2]
[405787535,1771309839118,-151.0,0.0001,2]
[405787538,1771309839127,-151.0,0.0001,2]
[405787540,1771309839138,-151.0,0.0001,2]
[405787542,1771309839147,-151.0,0.0001,2]
[405787544,1771309839157,-500.0,0.0001,2]
[405787546,1771309839166,-151.0,0.0001,2]
[405787548,1771309839176,-500.0,0.0001,2]
[405787550,1771309839185,-151.0,0.0001,2]
[405787551,1771309839195,-500.0,0.0001,2]
[405787554,1771309839205,-500.0,0.0001,2]
[405787556,1771309839214,-151.0,0.0001,2]
[405787557,1771309839224,-500.0,0.0001,2]
[405787560,1771309839234,-151.0,0.0001,2]
[405787561,1771309839243,-500.0,0.0001,2]
[405787563,1771309839255,-500.0,0.0001,2]
[405787565,1771309839265,-151.0,0.0001,2]
[405787568,1771309839276,-500.0,0.0001,2]
[405787570,1771309839286,-500.0,0.0001,2]
[405787571,1771309839299,-500.0,0.0001,2]
[405787573,1771309839308,-500.0,0.0001,2]
[405787576,1771309839318,-500.0,0.0001,2]
[405787578,1771309839328,-500.0,0.0001,2]
[405787580,1771309839338,-500.0,0.0001,2]
[405787582,1771309839348,-500.0,0.0001,2]
[405787584,1771309839358,-500.0,0.0001,2]
[405787586,1771309839373,-500.0,0.0001,2]
[405787588,1771309839383,-500.0,0.0001,2]
[405787590,1771309839392,-500.0,0.0001,2]
[405787592,1771309839403,-500.0,0.0001,2]
[405787594,1771309839413,-500.0,0.0001,2]
[405787596,1771309839422,-500.0,0.0001,2]
[405787598,1771309839431,-200.0,0.0001,2]
[405787600,1771309839440,-151.0,0.0001,2]
[405787603,1771309839449,-151.0,0.0001,2]
[405787606,1771309839459,-151.0,0.0001,2]
[405787609,1771309839468,-151.0,0.0001,2]
[405787612,1771309839478,-151.0,0.0001,2]
[405787615,1771309839487,-500.0,0.0001,2]
[405787618,1771309839496,-151.0,0.0001,2]
[405787620,1771309839507,-151.0,0.0001,2]
[405787622,1771309839517,-151.0,0.0001,2]
[405787624,1771309839526,-151.0,0.0001,2]
[405787626,1771309839536,-151.0,0.0001,2]
[405787628,1771309839545,-151.0,0.0001,2]
[405787630,1771309839555,-151.0,0.0001,2]
[405787632,1771309839564,-151.0,0.0001,2]
[405787634,1771309839574,-151.0,0.0001,2]
[405787636,1771309839584,-151.0,0.0001,2]
[405787639,1771309839593,-151.0,0.0001,2]
[405787642,1771309839603,-151.0,0.0001,2]
[405787645,1771309839612,-151.0,0.0001,2]
[405787648,1771309839621,-151.0,0.0001,2]
[405787651,1771309839631,-151.0,0.0001,2]
[405787654,1771309839640,-500.0,0.0001,2]
[405787655,1771309839650,-827.98134311,0.0001,2]
[405787657,1771309839660,-827.98134311,0.0001,2]
[405787660,1771309839670,-500.0,0.00010055,2]
[405787662,1771309839679,-500.0,0.00010055,2]
[405787664,1771309839689,-621.12228144,0.00010055,2]
[405787666,1771309839699,-466.0,0.00010055,2]
[405787668,1771309839709,-500.0,0.00010055,2]
[405787670,1771309839718,-159.8970963,0.00010104,2]
[405787672,1771309839727,-500.0,0.0001011,2]
[405787674,1771309839737,-500.0,0.0001011,2]
[405787676,1771309839747,-466.0,0.0001011,2]
[405787678,1771309839757,-500.0,0.0001011,2]
[405787680,1771309839767,-500.0,0.00010164,2]
[405787682,1771309839776,-466.0,0.00010164,2]
[405787684,1771309839786,-500.0,0.00010164,2]
[405787686,1771309839796,-466.0,0.00010219,2]
[405787688,1771309839805,-500.0,0.00010219,2]
[405787690,1771309839815,-500.0,0.00010219,2]
[405787693,1771309839825,-1443.217419,0.0001026,2]
[405787695,1771309839834,-466.0,0.00010274,2]
[405787697,1771309839843,-500.0,0.00010274,2]
[405787699,1771309839854,-500.0,0.00010274,2]
[405787701,1771309839863,-500.0,0.00010274,2]
[405787703,1771309839872,-269.39,0.00010274,2]
[405787705,1771309839881,-13099.43824368,0.00010296,2]
[405787707,1771309839891,-466.0,0.00010329,2]
[405787708,1771309839900,-500.0,0.00010329,2]
[405787711,1771309839909,-500.0,0.00010329,2]
[405787713,1771309839919,-466.0,0.00010384,2]
[405787715,1771309839928,-500.0,0.00010384,2]
[405787717,1771309839938,-500.0,0.00010384,2]
[405787719,1771309839947,-466.0,0.00010438,2]
[405787721,1771309839956,-500.0,0.00010438,2]
[405787723,1771309839965,-466.0,0.00010493,2]
[405787725,1771309839975,-500.0,0.00010493,2]
[405787727,1771309839984,-466.0,0.00010548,2]
[405787729,1771309839994,-500.0,0.00010548,2]
[405787731,1771309840004,-500.0,0.00010548,2]
[405787733,1771309840013,-269.39,0.00010548,2]
[405787735,1771309840023,-201.77822118,0.00010548,2]
[405787737,1771309840033,-201.41552809,0.00010548,2]
[405787738,1771309840042,-503.55960548,0.00010548,2]
[405787739,1771309840051,-500.0,0.00010573,2]
[405787740,1771309840061,-466.0,0.00010603,2]
[405787741,1771309840070,-500.0,0.00010603,2]
[405787742,1771309840080,-466.0,0.00010658,2]
[405787743,1771309840090,-500.0,0.00010658,2]
[405787744,1771309840099,-1000.0,0.00010711,2]
[405787745,1771309840108,-481.0942881,0.00010712,2]
[405787746,1771309840118,-466.0,0.00010712,2]
[405787747,1771309840127,-466.0,0.00010767,2]
[405787748,1771309840136,-250.0,0.00010811,2]
[405787750,1771309840146,-466.0,0.00010822,2]
[405787752,1771309840156,-500.0,0.00010822,2]
[405787754,1771309840165,-466.0,0.00010877,2]
[405787757,1771309840179,-823.0,0.0001089,2]
[405787759,1771309840190,-3292.0,0.0001089,2]
[405787761,1771309840199,-299.99,0.000109,2]
[405787763,1771309840209,-150.99,0.000109,2]
[405787765,1771309840219,-14037.81,0.000109,2]
[405787768,1771309840229,-19999.99,0.000109,2]
[405787770,1771309840238,-5300.13656816,0.000109,2]
[405787772,1771309840249,-5300.13656815,0.000109,2]
[405787774,1771309840259,-5300.13656815,0.000109,2]
[405787776,1771309840269,-466.0,0.00010931,2]
[405787778,1771309840278,-500.0,0.00010959,2]
[405787780,1771309840292,-500.0,0.00010973,2]
[405787782,1771309840302,-500.0,0.00010973,2]
[405787784,1771309840312,-502.12798245,0.00010973,2]
[405787786,1771309840322,-500.0,0.00010973,2]
[405787789,1771309840334,-6034.81891893,0.00011,2]
[405787791,1771309840343,-999.99,0.00011065,2]
[405787793,1771309840353,-8650.58,0.00011065,2]
[405787795,1771309840362,-9999.99,0.00011065,2]
[405787797,1771309840375,-4513.72,0.00011065,2]
[405787799,1771309840385,-150.99,0.00011065,2]
[405787801,1771309840394,-500.0,0.00011096,2]
[405787803,1771309840403,-11808.51754568,0.00011099,2]
[405787805,1771309840413,-11808.51754568,0.00011099,2]
[405787807,1771309840423,-11808.51754568,0.00011099,2]
[405787809,1771309840432,-11808.51754568,0.00011099,2]
[405787811,1771309840442,-3826.55068931,0.00011099,2]